bitfinex/quotes_ETHUSD_20250706
["timestamp","ask_amount","ask_price","bid_price","bid_amount"]
[1751808970828,0.196,2546.6,2546.5,3.92695857]
[1751808971035,0.8079,2547.2,2546.5,0.792]
[1751808971222,0.196,2546.9,2546.7,3.92651119]
[1751808971422,8.559,2547.1,2546.9,3.92624437]
[1751808971672,8.755,2547.1,2546.8,3.92649599]
[1751808971824,8.558,2547.0,2546.8,3.92649599]
[1751808972153,8.558,2547.0,2546.6,0.196]
[1751808972351,8.558,2546.9,2546.7,3.92665017]
[1751808972647,8.558,2546.8,2546.7,3.92665017]
[1751808973032,8.558,2546.8,2546.6,4.12279079]
[1751808973231,8.558,2546.8,2546.7,3.92665017]
[1751808973750,0.7868,2547.5,2547.0,3.92618767]
[1751808973953,0.196,2547.3,2547.0,3.92618767]
[1751808974142,0.196,2547.3,2547.1,3.92593122]
[1751808974629,0.196,2547.3,2547.2,3.92587939]
[1751808974833,8.557,2547.2,2547.1,3.92590879]
[1751808975555,0.196,2547.3,2547.1,3.92590879]
[1751808975848,0.196,2547.3,2547.2,3.92587939]
[1751808976338,8.752,2547.3,2547.2,3.92587939]
[1751808976953,9.6272,2547.3,2546.8,3.92636475]
[1751808977129,9.6272,2547.3,2546.0,2.218]
[1751808977130,0.196,2547.0,2546.5,1.02726958]
[1751808977464,0.196,2547.0,2546.6,3.92679234]
[1751808977651,0.4908844,2547.0,2546.5,3.92695857]
[1751808977828,0.7868,2547.2,2546.6,3.92668536]
[1751808977829,0.196,2546.8,2546.6,3.92668536]
[1751808978033,0.196,2546.8,2546.7,3.92665017]
[1751808978236,8.751,2546.8,2546.7,3.92665017]
[1751808978623,0.196,2546.8,2546.3,10.196]
[1751808978837,8.555,2546.8,2546.7,4.68185017]
[1751808979035,8.555,2546.8,2546.7,5.73871396]
[1751808979649,0.196,2547.2,2547.0,3.9260659]
[1751808980152,8.554,2547.1,2547.0,3.9260659]
[1751808980953,0.196,2547.2,2546.7,1.81206379]
[1751808981262,8.554,2547.1,2546.9,0.196]
[1751808981565,8.554,2547.1,2546.9,4.12228815]
[1751808981864,8.504,2547.1,2547.0,3.92618767]
[1751808982451,0.196,2547.4,2547.0,3.92618767]
[1751808982643,8.553,2547.3,2546.9,0.196]
[1751808982844,8.553,2547.3,2547.0,3.92611634]
[1751808983245,8.553,2547.3,2547.1,3.92602715]
[1751808983447,8.553,2547.3,2547.0,3.92608349]
[1751808983671,8.553,2547.3,2547.1,3.92600406]
[1751808983972,8.553,2547.3,2546.9,0.196]
[1751808984149,8.553,2547.3,2547.1,3.92602548]
[1751808984345,8.553,2547.3,2546.9,4.1223183]
[1751808984667,8.553,2547.3,2547.1,3.92602613]
[1751808984988,8.553,2547.3,2547.0,3.92611862]
[1751808985268,8.553,2547.3,2546.9,0.196]
[1751808985269,9.8204429,2547.3,2546.9,0.196]
[1751808985444,0.196,2547.0,2546.7,3.92653359]
[1751808985654,0.8079,2547.6,2547.1,3.92595925]
[1751808985857,0.196,2547.3,2547.0,3.9261303]
[1751808987269,0.196,2547.3,2547.0,3.92617818]
[1751808987488,0.196,2547.3,2547.1,3.92599499]
[1751808987840,8.55,2547.2,2547.1,3.92599499]
[1751808988174,0.196,2547.3,2547.2,3.92587939]
[1751808988375,8.549,2547.3,2547.2,3.92579366]
[1751808989351,0.196,2547.5,2547.2,3.92587939]
[1751808989559,8.549,2547.4,2547.1,3.92598843]
[1751808989761,8.549,2547.4,2547.2,3.92587729]
[1751808991480,8.549,2547.4,2547.0,0.196]
[1751808991645,0.196,2547.3,2546.8,4.12236303]
[1751808991854,0.196,2547.3,2546.9,3.92631634]
[1751808992279,0.196,2547.3,2546.8,0.196]
[1751808992500,4.1224786,2546.9,2546.4,0.196]
[1751808992683,3.92680436,2546.6,2545.9,0.00379439]
[1751808992885,4.12359005,2546.1,2545.9,0.00379439]
[1751808993048,13.27342977,2546.0,2545.9,0.00379439]
[1751808993674,0.7997,2546.0,2545.9,0.00379439]
[1751808993875,9.3457,2546.0,2545.9,0.00379439]
[1751808994185,13.27342977,2546.0,2545.9,0.00379439]
[1751808994867,14.42471977,2546.0,2545.9,0.00379439]
[1751808996897,13.46842977,2546.0,2545.9,0.00379439]
[1751808997567,13.46942977,2546.0,2545.9,0.00379439]
[1751808998286,8.741,2546.0,2545.9,0.00379439]
[1751808998582,12.66872977,2546.0,2545.9,0.00379439]
[1751808998982,4.12372977,2546.0,2545.9,0.00379439]
[1751808999181,13.16179275,2546.0,2545.9,0.00379439]
[1751808999708,12.96579275,2546.0,2545.9,0.00379439]
[1751809000686,13.77269275,2546.0,2545.9,0.00379439]
[1751809000988,14.32269275,2546.0,2545.9,0.00379439]
[1751809002264,14.32269275,2546.0,2545.9,0.00479439]
[1751809004078,14.68808482,2546.0,2545.9,0.00479439]
[1751809004389,14.32269275,2546.0,2545.9,0.00479439]
[1751809007359,23.77710127,2545.5,2545.4,0.0436466]
[1751809007562,24.14202528,2545.5,2545.4,0.0436466]
[1751809008290,23.77710127,2545.5,2545.4,0.0436466]
[1751809008492,24.27016425,2545.5,2545.4,0.0436466]
[1751809008791,32.44489993,2545.5,2545.4,0.0436466]
[1751809009388,23.90289993,2545.5,2545.4,0.0436466]
[1751809009692,34.65889993,2545.5,2545.4,0.0436466]
[1751809010014,34.29416425,2545.5,2545.4,0.0436466]
[1751809010296,12.00466298,2545.5,2545.4,0.0436466]
[1751809010465,15.93316425,2545.5,2545.4,0.0436466]
[1751809010660,16.48316425,2545.5,2545.4,0.0436466]
[1751809010862,0.49306298,2545.5,2545.4,0.0436466]
[1751809011066,8.541,2545.5,2545.4,0.0436466]
[1751809011391,8.541,2545.5,2545.4,3.97230221]
[1751809011585,0.196,2545.6,2545.4,0.0436466]
[1751809011782,0.196,2545.7,2545.6,3.92834695]
[1751809012088,8.736,2545.7,2545.6,3.92834695]
[1751809012486,8.736,2545.7,2545.4,3.97228473]
[1751809012797,8.736,2545.7,2545.6,3.92834695]
[1751809014398,8.736,2545.7,2545.6,3.87834695]
[1751809015788,0.196,2545.7,2545.6,3.87834695]
[1751809015988,8.538,2545.7,2545.5,3.928388]
[1751809016300,8.538,2545.7,2545.4,0.0436466]
[1751809016594,0.196,2545.6,2545.4,3.97227517]
[1751809016797,8.538,2545.7,2545.5,3.92850127]
[1751809017001,2.9635,2546.6,2546.1,3.92755931]
[1751809017174,0.196,2546.2,2546.1,3.92755931]
[1751809017374,8.537,2546.5,2546.1,3.92755931]
[1751809017375,0.196,2546.5,2546.1,0.9553]
[1751809017579,0.196,2546.5,2546.4,3.92711278]
[1751809017775,8.732,2546.5,2546.4,3.92711278]
[1751809017995,0.196,2546.5,2546.4,3.92711278]
[1751809018297,8.536,2546.5,2546.3,4.12324761]
[1751809018488,8.536,2546.5,2546.4,3.92711278]
[1751809020308,8.536,2546.5,2546.3,3.92724951]
[1751809020605,8.536,2546.5,2546.1,0.7593]
[1751809020796,0.196,2546.3,2546.1,4.68686782]
[1751809020976,0.55,2546.4,2545.5,0.7593]
[1751809021178,0.196,2545.9,2545.8,3.92803833]
[1751809021396,8.532,2545.9,2545.8,3.92803833]
[1751809021809,8.532,2545.9,2545.7,4.12411585]
[1751809022108,8.532,2545.9,2545.5,0.7593]
[1751809022296,0.196,2545.7,2545.4,3.97229009]
[1751809022609,0.196,2545.6,2545.4,0.0436466]
[1751809022810,12.46050127,2545.5,2545.4,0.0436466]
[1751809023109,14.4846514,2545.5,2545.4,0.0436466]
[1751809023406,15.0346514,2545.5,2545.4,0.0436466]
[1751809024513,14.4836514,2545.5,2545.4,0.0436466]
[1751809026592,15.0336514,2545.5,2545.4,0.0436466]
[1751809027594,15.4000776,2545.5,2545.4,0.0436466]
[1751809028405,6.8690776,2545.5,2545.4,0.0436466]
[1751809028614,17.6010776,2545.5,2545.4,0.0436466]
[1751809028812,17.6010776,2545.5,2545.4,0.0446466]
[1751809029115,4.47911869,2545.1,2545.0,20.001]
[1751809029287,13.71774926,2545.1,2545.0,20.001]
[1751809029487,0.71063057,2545.1,2545.0,20.001]
[1751809029710,15.37174926,2545.1,2545.0,20.001]
[1751809029917,15.92174926,2545.1,2545.0,20.001]
[1751809030215,16.2881864,2545.1,2545.0,20.001]
[1751809030517,15.7381864,2545.1,2545.0,20.001]
[1751809030706,15.73814076,2545.1,2545.0,20.001]
[1751809031383,15.37174926,2545.1,2545.0,20.001]
[1751809031583,15.7380815,2545.1,2545.0,20.001]
[1751809031809,16.2880815,2545.1,2545.0,20.001]
[1751809032979,27.1085815,2545.1,2545.0,20.001]
[1751809033410,27.10843829,2545.1,2545.0,20.001]
[1751809034297,13.92944994,2544.9,2544.7,0.02]
[1751809034501,4.48004519,2544.5,2544.4,0.0436466]
[1751809034734,17.10736478,2544.5,2544.4,0.0436466]
[1751809034903,27.10736478,2544.5,2544.4,0.0436466]
[1751809035420,34.91736478,2544.5,2544.4,1e-08]
[1751809035620,4.48081761,2544.0,2543.9,0.0436466]
[1751809035820,14.1911983,2544.0,2543.9,0.0436466]
[1751809036020,15.45684843,2544.0,2543.9,0.0436466]
[1751809036318,25.45684843,2544.0,2543.9,0.0436466]
[1751809036516,25.45684843,2544.0,2543.5,0.02]
[1751809036517,4.48143576,2543.6,2543.5,0.02]
[1751809036726,4.48143576,2543.6,2542.3,0.7721]
[1751809036727,5.2907449,2543.4,2543.3,0.0494742]
[1751809037025,24.18162559,2543.4,2543.3,0.0494742]
[1751809037320,24.89225615,2543.4,2543.3,0.0494742]
[1751809038322,27.09625615,2543.4,2543.3,0.0494742]
[1751809039405,16.36725615,2543.4,2543.3,0.0494742]
[1751809039603,27.09825615,2543.4,2543.3,0.0494742]
[1751809041503,11.09588069,2543.4,2543.3,0.0494742]
[1751809041730,14.6617449,2543.4,2543.3,0.0494742]
[1751809042137,15.2117449,2543.4,2543.3,0.0494742]
[1751809042431,15.57526193,2543.4,2543.3,0.0494742]
[1751809042643,15.2117449,2543.4,2543.3,0.0494742]
[1751809043302,10.73,2543.4,2543.3,0.0494742]
[1751809044437,15.2117449,2543.4,2543.3,0.0494742]
[1751809045106,0.53469434,2544.4,2543.4,0.7597]
[1751809045338,3.93056869,2544.2,2543.4,0.7597]
[1751809045539,8.523,2544.1,2543.4,1.23381475]
[1751809045725,3.93074235,2544.1,2543.5,3.93151986]
[1751809046056,3.9300655,2544.5,2543.4,4.69143539]
[1751809046057,8.523,2544.0,2543.9,3.93097212]
[1751809046556,3.93021801,2544.4,2543.9,3.93097212]
[1751809046714,8.523,2544.3,2543.8,3.931052]
[1751809046916,3.93037509,2544.3,2543.8,3.931052]
[1751809047115,8.522,2544.2,2543.9,0.7719]
[1751809047728,3.93067228,2544.1,2543.9,0.7719]
[1751809047951,12.45257596,2544.2,2543.9,0.7719]
[1751809048136,3.93072394,2544.1,2543.9,0.7719]
[1751809048313,8.521,2544.0,2543.6,0.7719]
[1751809048738,8.521,2544.0,2543.6,4.70330296]
[1751809048937,8.521,2544.0,2543.6,0.7719]
[1751809049127,8.521,2544.0,2543.7,3.93127205]
[1751809049849,8.521,2544.0,2543.8,3.93112494]
[1751809050154,2.196,2544.4,2544.1,0.7719]
[1751809050340,8.52,2544.3,2544.1,0.7719]
[1751809050745,12.45043071,2544.3,2543.8,0.7719]
[1751809050946,3.93053936,2544.2,2543.8,0.7719]
[1751809051520,3.9306694,2544.1,2543.8,0.7719]
[1751809051724,8.519,2544.0,2543.8,0.7719]
[1751809052259,12.44984767,2544.0,2543.4,4.70351152]
[1751809052569,8.519,2544.0,2543.7,3.93118397]
[1751809052850,8.519,2544.0,2543.8,3.93098867]
[1751809053025,8.518,2543.9,2543.8,3.93098867]
[1751809054355,2.196,2544.4,2544.2,3.93041356]
[1751809054540,8.517,2544.3,2544.1,3.93059916]
[1751809054739,2.196,2544.4,2544.1,3.93059916]
[1751809054933,8.516,2544.3,2544.1,3.93059916]
[1751809055129,2.196,2544.4,2544.1,3.93059916]
[1751809055356,8.516,2544.2,2544.1,3.93059916]
[1751809055550,8.516,2544.2,2544.0,0.196]
[1751809056637,8.516,2544.2,2543.8,0.7921]
[1751809056838,8.712,2544.2,2543.8,4.72318924]
[1751809057565,8.712,2544.2,2543.8,0.7921]
[1751809057771,8.712,2544.2,2543.8,4.72320676]
[1751809057945,3.93078966,2544.1,2543.8,0.7921]
[1751809058146,0.196,2544.0,2543.8,0.7921]
[1751809058353,8.514,2543.9,2543.8,0.7921]
[1751809058552,8.514,2543.9,2543.5,4.88022827]
[1751809058754,8.514,2543.9,2543.5,0.7527]
[1751809058956,0.196,2543.8,2543.5,4.68428018]
[1751809059154,0.196,2543.8,2543.6,3.93135458]
[1751809059748,3.93050864,2544.2,2543.6,4.75822709]
[1751809059960,0.196,2544.0,2543.7,3.93126988]
[1751809060469,0.196,2544.0,2543.7,3.9312812]
[1751809060674,11.74006351,2544.5,2543.7,3.9312812]
[1751809060675,0.196,2544.2,2543.8,0.79101126]
[1751809060871,7.81,2544.5,2544.0,3.93081761]
[1751809060872,8.512,2544.1,2544.0,3.93081761]
[1751809061980,8.512,2544.1,2543.9,4.1268885]
[1751809062272,8.512,2544.1,2543.8,4.68272726]
[1751809062593,8.512,2544.1,2543.8,4.87872726]
[1751809063075,8.512,2544.1,2543.8,0.196]
[1751809063253,0.196,2543.9,2543.7,3.93119355]
[1751809063578,8.51,2543.8,2543.7,4.12719355]
[1751809063776,8.509,2543.8,2543.7,4.12719355]
[1751809064674,8.509,2543.8,2543.7,0.196]
[1751809064850,8.509,2543.8,2543.5,4.73785196]
[1751809065046,8.509,2543.8,2543.5,1.0023]
[1751809065253,8.705,2543.8,2543.5,0.8063]
[1751809065651,12.63616042,2543.8,2543.5,0.8063]
[1751809066073,3.93128782,2543.7,2543.5,0.8063]
[1751809066779,0.196,2543.6,2543.5,0.001]
[1751809068461,8.509,2543.8,2543.5,0.001]
[1751809068462,8.705,2543.8,2543.5,0.001]
[1751809068871,8.705,2543.8,2543.5,3.93254126]
[1751809069189,8.705,2543.8,2543.5,0.001]
[1751809069375,8.705,2543.8,2543.6,3.93142319]
[1751809069883,8.705,2543.8,2543.7,0.8292]
[1751809070051,8.705,2543.8,2543.7,4.7604812]
[1751809070250,2.196,2544.4,2543.9,3.9309533]
[1751809070556,0.196,2544.2,2543.8,4.12705312]
[1751809070757,8.87201702,2544.1,2543.8,0.196]
[1751809070957,8.505,2544.1,2543.8,4.12710099]
[1751809071263,8.505,2544.1,2543.8,0.196]
[1751809071475,0.196,2543.8,2543.7,0.8292]
[1751809071678,8.7,2543.8,2543.7,0.8292]
[1751809072258,8.7,2543.8,2543.5,0.001]
[1751809072481,12.63113392,2543.8,2543.5,0.001]
[1751809072684,0.196,2543.7,2543.5,0.001]
[1751809073496,0.196,2543.7,2543.5,3.93257504]
[1751809073795,0.196,2543.7,2543.5,3.93252242]
[1751809075266,0.196,2543.7,2543.5,0.001]
[1751809076999,0.196,2543.7,2543.6,3.93143576]
[1751809077195,9.0653811,2543.7,2543.6,3.93143576]
[1751809077400,9.0653811,2543.7,2543.5,3.93256632]
[1751809077401,9.06537185,2543.7,2543.5,3.93252049]
[1751809077695,8.697,2543.7,2543.5,3.93252049]
[1751809077896,8.697,2543.7,2543.5,0.001]
[1751809078087,8.697,2543.7,2543.6,3.93143576]
[1751809078291,8.697,2543.7,2543.5,3.93250528]
[1751809078467,8.697,2543.7,2543.5,0.001]
[1751809078666,8.697,2543.7,2543.5,3.93256395]
[1751809078999,8.697,2543.7,2543.6,3.93143576]
[1751809079299,8.697,2543.7,2543.5,3.93251847]
[1751809079901,8.697,2543.7,2543.5,0.001]
[1751809080280,8.697,2543.7,2543.5,3.93244728]
[1751809080475,8.697,2543.7,2543.6,3.93143576]
[1751809080675,8.697,2543.7,2543.5,0.001]
[1751809081879,8.697,2543.7,2543.5,3.93258805]
[1751809082615,8.697,2543.7,2543.5,0.001]
[1751809083098,9.47668069,2543.7,2543.5,0.001]
[1751809083298,4.12743576,2543.6,2543.5,0.001]
[1751809083502,5.04581314,2543.6,2543.5,0.001]
[1751809083872,5.85231314,2543.6,2543.5,0.001]
[1751809085000,12.05287738,2543.6,2543.5,0.001]
[1751809085303,9.05937738,2543.6,2543.5,0.001]
[1751809085493,9.05937738,2543.6,2543.5,3.93259032]
[1751809085808,10.2505,2543.9,2543.8,3.93112666]
[1751809086101,9.05798302,2543.9,2543.5,3.93251061]
[1751809086298,0.36798302,2543.8,2543.6,3.9314194]
[1751809086716,8.69,2543.9,2543.6,3.93135816]
[1751809086880,0.36797765,2543.8,2543.5,3.93256691]
[1751809087075,0.36797765,2543.8,2543.7,3.9312812]
[1751809087273,0.36799438,2543.8,2543.7,3.9312812]
[1751809087472,8.69,2543.9,2543.7,3.9312812]
[1751809087913,8.69,2543.9,2543.6,3.93135548]
[1751809088126,0.36799338,2543.8,2543.7,3.93126765]
[1751809088289,8.86199338,2543.8,2543.5,0.001]
[1751809088494,8.494,2543.8,2543.5,3.93251803]
[1751809088688,0.36803169,2543.7,2543.5,0.001]
[1751809088907,0.56403169,2543.7,2543.5,0.001]
[1751809089215,0.196,2543.7,2543.5,0.001]
[1751809089713,8.492,2543.6,2543.5,0.001]
[1751809090313,8.688,2543.6,2543.5,0.001]
[1751809091809,9.05605736,2543.6,2543.5,0.001]
[1751809092011,9.77004903,2543.6,2543.5,0.001]
[1751809092213,8.688,2543.6,2543.5,0.001]
[1751809093113,9.05614438,2543.6,2543.5,0.001]
[1751809093277,12.98758014,2543.6,2543.5,0.001]
[1751809093477,9.05614438,2543.6,2543.5,0.001]
[1751809093677,12.98758014,2543.6,2543.5,0.001]
[1751809095334,13.53758014,2543.6,2543.5,0.001]
[1751809095635,14.36788014,2543.6,2543.5,0.001]
[1751809096410,24.36788014,2543.6,2543.5,0.001]
[1751809097539,24.66783762,2543.6,2543.5,0.001]
[1751809098248,15.31189032,2543.5,2543.4,0.001]
[1751809098445,25.6770347,2543.5,2543.4,1e-08]
[1751809098744,25.67664482,2543.5,2543.4,1e-08]
[1751809100222,23.48964482,2543.5,2543.4,1e-08]
[1751809100528,34.16164482,2543.5,2543.4,1e-08]
[1751809100935,14.4817449,2543.4,2543.3,1e-08]
[1751809101107,15.3120449,2543.4,2543.3,1e-08]
[1751809101308,15.67944477,2543.4,2543.3,1e-08]
[1751809101724,23.48944477,2543.4,2543.3,1e-08]
[1751809101929,23.48944477,2543.4,2542.5,0.02]
[1751809101930,4.48298198,2542.6,2542.5,0.02]
[1751809102144,26.74004046,2542.6,2542.5,0.02]
[1751809102512,26.37258018,2542.6,2542.5,0.02]
[1751809102712,26.73982469,2542.6,2542.5,1e-08]
[1751809103720,16.06982469,2542.6,2542.5,1e-08]
[1751809104242,18.25682469,2542.6,2542.5,1e-08]
[1751809104418,26.73982469,2542.6,2542.5,1e-08]
[1751809105814,18.24682469,2542.6,2542.5,1e-08]
[1751809106020,26.72882469,2542.6,2542.5,1e-08]
[1751809108240,16.06885229,2542.6,2542.5,1e-08]
[1751809108446,26.17785229,2542.6,2542.5,1e-08]
[1751809108627,26.72785229,2542.6,2542.5,1e-08]
[1751809110159,14.48329137,2542.4,2542.3,0.04300351]
[1751809110472,14.48329137,2542.4,2541.8,0.0438035]
[1751809110473,4.48360081,2542.2,2541.8,0.0438035]
[1751809110655,13.32987292,2542.2,2541.8,0.0438035]
[1751809110855,13.32987292,2542.2,2542.1,1e-08]
[1751809111054,14.58917112,2542.2,2542.1,1e-08]
[1751809111256,32.39917112,2542.2,2542.1,1e-08]
[1751809114736,32.69429318,2542.2,2542.1,1e-08]
[1751809116169,34.86929318,2542.2,2542.1,1e-08]
[1751809116344,24.21429318,2542.2,2542.1,1e-08]
[1751809116548,34.87029318,2542.2,2542.1,1e-08]
[1751809118561,24.21429318,2542.2,2542.1,1e-08]
[1751809118767,34.86929318,2542.2,2542.1,1e-08]
[1751809121241,34.86629318,2542.2,2542.1,1e-08]
[1751809122574,34.86629318,2542.2,2541.9,0.0071849]
[1751809122575,4.4839103,2542.0,2541.9,0.00638491]
[1751809122871,4.48452943,2541.6,2541.5,0.001]
[1751809123040,25.50180154,2541.6,2541.5,0.001]
[1751809123240,14.85080154,2541.6,2541.5,0.001]
[1751809123439,25.50080154,2541.6,2541.5,0.001]
[1751809123640,11.56627211,2541.6,2541.5,0.001]
[1751809123842,11.56627211,2541.6,2541.5,0.7657]
[1751809124143,15.50080154,2541.6,2541.5,0.001]
[1751809124344,0.36627211,2541.6,2541.5,0.001]
[1751809124545,11.01627211,2541.6,2541.5,0.001]
[1751809124847,8.83727211,2541.6,2541.5,0.001]
[1751809125064,0.56227211,2541.6,2541.5,0.001]
[1751809125266,9.03327211,2541.6,2541.5,4.70038424]
[1751809125466,9.03327211,2541.6,2541.5,0.7657]
[1751809125667,0.56227211,2541.6,2541.5,0.7657]
[1751809125988,9.03327211,2541.6,2541.5,0.7657]
[1751809126146,0.56273687,2541.6,2541.5,4.70038424]
[1751809126455,8.83673687,2541.6,2541.5,4.70038424]
[1751809126651,0.36673687,2541.6,2541.5,4.70038424]
[1751809126873,8.83673687,2541.6,2541.5,4.70038424]
[1751809127084,8.83673687,2541.6,2541.5,0.7657]
[1751809127547,0.36673687,2541.6,2541.5,0.7657]
[1751809127742,0.36673687,2541.6,2541.5,4.70038424]
[1751809127942,0.36673687,2541.6,2541.5,5.62284526]
[1751809128179,7.81,2542.6,2542.1,3.93375555]
[1751809128180,0.196,2542.3,2542.1,3.93375555]
[1751809128360,8.83823615,2542.2,2542.0,4.69862901]
[1751809128555,0.36723615,2542.1,2542.0,4.69862901]
[1751809128970,0.36723615,2542.1,2542.0,4.6987103]
[1751809129173,0.36723615,2542.1,2542.0,0.7648]
[1751809129349,0.36723615,2542.1,2542.0,4.6987103]
[1751809129548,0.36723615,2542.1,2542.0,0.7648]
[1751809129751,8.83523615,2542.1,2542.0,0.7648]
[1751809130962,12.7689917,2542.1,2542.0,0.7648]
[1751809131167,3.93410965,2541.9,2541.7,0.7648]
[1751809131487,12.76798243,2541.8,2541.7,0.7648]
[1751809131687,8.83376259,2541.8,2541.7,0.7648]
[1751809132188,9.38376259,2541.8,2541.7,0.7648]
[1751809132553,9.38376259,2541.8,2541.7,4.69917463]
[1751809132554,0.36776259,2541.8,2541.7,4.69917463]
[1751809132758,8.464,2542.0,2541.9,3.93404331]
[1751809132986,8.83182183,2542.0,2541.9,3.93404331]
[1751809133188,8.83182183,2542.0,2541.9,4.16938396]
[1751809133416,0.36782183,2542.0,2541.9,4.92588396]
[1751809133593,1e-08,2542.2,2542.1,14.69025555]
[1751809133898,8.464,2542.6,2542.5,4.68963667]
[1751809134081,3.93165764,2543.5,2543.0,0.7565]
[1751809134262,0.196,2543.3,2543.0,0.7565]
[1751809134462,0.36752129,2543.2,2543.0,0.7565]
[1751809134679,8.83052129,2543.1,2543.0,0.7565]
[1751809136091,0.36752129,2543.1,2543.0,4.68886335]
[1751809136263,0.196,2543.5,2543.3,3.93184904]
[1751809136463,8.8279078,2543.4,2543.2,3.93197891]
[1751809136658,0.3669078,2543.3,2543.1,4.68863696]
[1751809136891,8.461,2543.3,2543.1,4.68863696]
[1751809137095,8.461,2543.3,2543.1,0.7565]
[1751809137463,0.002,2543.7,2543.5,4.74087737]
[1751809137688,8.46,2543.6,2543.5,4.74081621]
[1751809138071,8.46,2543.6,2543.5,0.8093]
[1751809138995,12.39143576,2543.6,2543.0,4.12824925]
[1751809139207,0.196,2543.5,2543.0,4.12824925]
[1751809139372,0.196,2543.5,2543.2,4.74134123]
[1751809139568,8.457,2543.4,2543.2,4.74128515]
[1751809139996,8.457,2543.4,2543.2,0.8093]
[1751809140705,0.196,2543.3,2543.2,0.8093]
[1751809141063,0.002,2543.7,2543.2,4.7413541]
[1751809141267,0.196,2543.5,2543.3,3.93181019]
[1751809141680,0.196,2543.5,2543.2,4.74127784]
[1751809141868,0.196,2543.5,2543.2,0.8093]
[1751809142194,8.454,2543.4,2543.2,4.7413508]
[1751809142398,8.454,2543.4,2543.2,0.8093]
[1751809142597,8.454,2543.4,2543.3,3.9318995]
[1751809142899,8.454,2543.4,2543.2,4.93727513]
[1751809143598,8.454,2543.4,2543.3,3.9318995]
[1751809143799,8.454,2543.4,2543.2,1.0053]
[1751809143990,0.196,2543.6,2543.2,1.0053]
[1751809144190,8.454,2543.5,2543.3,0.03931899]
[1751809144389,8.454,2543.5,2543.2,1.0053]
[1751809145005,9.3192,2543.5,2543.2,1.0053]
[1751809146317,8.451,2543.4,2543.2,4.93734235]
[1751809146519,8.451,2543.4,2543.2,1.0053]
[1751809147215,12.38288014,2543.4,2543.2,1.0053]
[1751809147417,3.9318995,2543.3,2542.6,3.93290724]
[1751809147618,0.8652,2543.5,2542.7,0.9627]
[1751809147619,9.03818995,2543.2,2542.7,0.9627]
[1751809147821,4.12836467,2543.0,2542.7,0.7667]
[1751809148196,0.196,2543.0,2542.7,0.7667]
[1751809148517,3.93267264,2542.8,2542.7,0.7667]
[1751809148733,3.9328273,2542.7,2542.4,0.7667]
[1751809148884,0.196,2542.8,2542.4,0.7667]
[1751809149089,8.448,2542.7,2542.4,4.69991182]
[1751809149298,8.448,2542.7,2542.5,0.196]
[1751809149587,8.448,2542.7,2542.4,4.69991182]
[1751809150202,8.448,2542.7,2542.4,0.7667]
[1751809150725,12.38086873,2542.7,2542.4,0.7667]
[1751809150891,4.12901149,2542.6,2542.4,0.7667]
[1751809151217,4.12905888,2542.6,2542.2,0.9627]
[1751809151419,4.12907252,2542.6,2542.2,0.9627]
[1751809151618,0.196,2542.6,2542.2,0.9627]
[1751809151823,0.196,2542.6,2542.2,4.8962935]
[1751809152187,0.196,2542.6,2542.3,3.93335772]
[1751809152389,8.446,2542.5,2542.3,3.93335772]
[1751809152589,8.446,2542.5,2542.2,4.89624072]
[1751809152988,8.445,2542.4,2542.2,4.89624072]
[1751809153190,4.48239481,2543.0,2542.3,3.93344609]
[1751809153409,4.12843534,2543.0,2542.5,4.12898355]
[1751809153721,8.445,2542.9,2542.5,4.12898355]
[1751809153886,8.445,2542.9,2542.6,3.93297023]
[1751809154086,8.445,2542.9,2542.5,4.1290657]
[1751809154424,8.445,2542.9,2542.5,0.196]
[1751809154790,8.445,2542.9,2542.5,4.12912308]
[1751809155086,8.445,2542.9,2542.5,0.196]
[1751809155290,8.445,2542.9,2542.5,4.12909476]
[1751809155625,0.196,2542.7,2542.3,4.12937371]
[1751809155921,3.93299748,2542.6,2542.2,0.7667]
[1751809156095,4.12938245,2542.4,2542.2,0.7667]
[1751809156297,4.12938245,2542.4,2542.1,0.001]
[1751809156694,0.196,2542.4,2542.1,0.001]
[1751809156896,4.1293013,2542.4,2542.1,0.001]
[1751809157222,3.93345642,2542.3,2542.1,0.001]
[1751809158621,0.196,2542.4,2542.1,0.001]
[1751809158822,8.442,2542.2,2542.1,0.001]
[1751809159031,8.442,2542.2,2542.1,4.60736209]
[1751809159320,8.442,2542.2,2542.1,0.67360654]
[1751809159526,8.442,2542.2,2542.1,4.13075555]
[1751809159723,6.89936595,2542.9,2542.1,4.13075555]
[1751809159724,1.19398995,2543.2,2542.4,3.93325969]
[1751809160019,4.12855156,2542.9,2542.4,3.93321156]
[1751809160238,0.3667978,2542.8,2542.5,3.93312609]
[1751809160428,8.441,2542.7,2542.6,3.93296768]
[1751809160725,8.80781517,2542.7,2542.6,3.93296768]
[1751809160922,8.80781517,2542.7,2542.4,0.196]
[1751809161127,8.441,2542.7,2542.4,0.196]
[1751809161323,0.196,2542.9,2542.4,0.196]
[1751809161492,8.441,2542.6,2542.5,3.93313667]
[1751809162123,0.196,2542.9,2542.5,3.93313667]
[1751809162428,8.439,2542.8,2542.5,0.8065]
[1751809162628,12.3717496,2542.8,2542.5,0.8065]
[1751809162927,12.3717496,2542.8,2542.4,0.196]
[1751809163301,0.55,2542.7,2542.3,0.8065]
[1751809163538,0.196,2542.6,2542.3,0.8065]
[1751809163695,3.93313819,2542.5,2542.1,0.197]
[1751809163893,0.196,2542.6,2542.1,4.13074217]
[1751809164127,8.438,2542.5,2542.3,3.93336067]
[1751809164729,8.438,2542.5,2542.3,3.93339495]
[1751809164904,8.438,2542.5,2542.1,0.197]
[1751809165099,12.37113901,2542.5,2542.1,0.197]